bitfinex/quotes_ETHUSD_20241225
["timestamp","ask_amount","ask_price","bid_price","bid_amount"]
[1735140105064,0.224,3476.1,3475.3,0.44839686]
[1735140105362,0.224,3476.1,3476.0,6.42686]
[1735140106900,0.7726,3476.7,3476.3,2.87656]
[1735140108301,0.7726,3476.7,3476.0,3.55]
[1735140108465,0.7726,3477.5,3476.1,0.905]
[1735140108663,0.7726,3477.5,3475.7,3.79756226]
[1735140108863,0.7726,3477.5,3475.9,5.7539]
[1735140109115,0.7726,3477.5,3476.4,2.87653]
[1735140110543,2.8757,3477.5,3476.4,2.87653]
[1735140110739,0.7726,3477.3,3476.0,0.55]
[1735140110940,0.7726,3477.3,3476.3,2.87654]
[1735140111158,0.7726,3477.1,3476.0,2.87682]
[1735140111481,0.7726,3477.0,3476.0,2.87682]
[1735140111680,0.7726,3477.0,3475.8,0.55]
[1735140111834,0.7726,3477.0,3475.8,3.55]
[1735140112022,0.7726,3477.0,3475.9,0.02876241]
[1735140112223,0.7726,3477.0,3476.6,2.87634]
[1735140112460,0.7726,3477.0,3476.4,2.8765]
[1735140112624,0.7726,3477.0,3476.5,2.87645]
[1735140113056,0.7726,3477.0,3476.5,3.164095]
[1735140113656,0.7726,3477.0,3476.1,3.55]
[1735140113822,0.7726,3477.0,3476.3,2.87659]
[1735140116078,0.7726,3477.0,3475.9,3.0]
[1735140116284,0.7726,3477.0,3476.1,2.87676]
[1735140116920,5.8755,3477.7,3475.7,0.7688]
[1735140116921,0.8077,3476.8,3475.7,0.7688]
[1735140117121,0.8077,3476.8,3475.9,2.87695]
[1735140117857,0.8077,3476.8,3475.8,0.55322003]
[1735140118056,0.8077,3476.8,3476.0,2.87684]
[1735140120064,0.8077,3476.8,3475.7,2.87704]
[1735140120265,0.8077,3476.6,3475.5,2.87725]
[1735140120472,0.8077,3476.4,3475.6,2.87719]
[1735140121563,0.8077,3476.4,3475.7,0.02876938]
[1735140121731,0.8077,3476.4,3475.9,2.87692]
[1735140123331,0.8077,3476.4,3475.3,0.55]
[1735140123672,0.8077,3476.2,3475.3,2.87744]
[1735140123833,0.03347073,3476.1,3475.2,1.19788021]
[1735140124378,0.03347073,3476.1,3475.2,4.07537021]
[1735140124678,0.8077,3476.2,3475.6,2.87712]
[1735140124878,0.8077,3476.2,3475.9,2.87693]
[1735140125682,0.8077,3476.2,3475.6,3.0]
[1735140125988,0.8077,3476.2,3476.0,2.87683]
[1735140126141,0.8077,3476.2,3475.7,0.02876719]
[1735140126142,0.8077,3477.0,3475.9,0.55]
[1735140126347,0.8077,3477.0,3476.5,2.87644]
[1735140127002,0.8077,3477.0,3476.3,2.87654]
[1735140128145,0.03347073,3476.9,3476.0,0.8051]
[1735140129155,2.87628,3476.8,3476.0,0.8051]
[1735140131692,5.87678,3476.1,3476.0,0.8051]
[1735140132781,3.0,3475.8,3475.0,1.19788021]
[1735140132976,2.87761,3475.1,3475.0,1.19788021]
[1735140133163,2.87761,3475.1,3474.0,1.19788021]
[1735140133364,2.87746,3475.3,3474.1,3.66489411]
[1735140134692,2.87755,3475.2,3474.1,2.87843]
[1735140135068,2.87737,3475.4,3474.2,2.87828]
[1735140135470,2.91099073,3475.3,3474.2,2.87828]
[1735140135797,2.87752,3475.3,3474.2,2.87828]
[1735140136151,0.03347073,3475.2,3474.4,2.87818]
[1735140136382,2.87731,3475.5,3474.4,3.165998]
[1735140136982,0.03347073,3475.4,3474.4,3.165998]
[1735140137183,2.87737,3475.4,3474.4,0.287818]
[1735140137414,0.03347073,3475.3,3474.0,3.0]
[1735140137586,0.03347073,3475.3,3474.1,0.55]
[1735140138384,2.87737,3475.4,3474.1,0.55]
[1735140138586,0.03347073,3475.3,3474.1,0.55]
[1735140138787,0.03347073,3475.3,3474.3,2.87826]
[1735140139060,2.87737,3475.4,3474.3,3.521086]
[1735140139707,0.03347073,3475.3,3474.3,3.521086]
[1735140140000,2.87737,3475.4,3474.3,3.521086]
[1735140140206,0.03347073,3475.3,3474.3,3.521086]
[1735140140610,2.87755,3475.2,3473.8,0.55]
[1735140140805,0.03347073,3475.1,3473.9,2.87853]
[1735140141110,2.87755,3475.2,3474.0,2.8785]
[1735140141888,2.87755,3475.2,3474.1,2.87842]
[1735140142086,2.87755,3475.2,3474.1,3.221262]
[1735140142774,2.87703,3475.8,3474.7,2.87786]
[1735140143088,1.20174116,3476.0,3474.4,0.55]
[1735140143285,1.20174116,3476.0,3475.1,2.87761]
[1735140143477,1.20174116,3476.0,3475.5,2.87727]
[1735140143478,0.016,3476.0,3475.5,2.87727]
[1735140144194,0.016,3476.0,3475.2,2.87752]
[1735140145331,2.87696,3475.9,3474.8,2.87781]
[1735140145529,2.87705,3475.8,3474.8,2.87781]
[1735140145697,2.91052073,3475.8,3474.6,2.87795]
[1735140145891,2.89289,3476.0,3474.9,2.87777]
[1735140146737,0.03347073,3475.9,3474.9,2.87777]
[1735140147342,2.89289,3476.0,3474.9,2.87777]
[1735140147633,0.016,3476.0,3475.4,2.87729]
[1735140147834,0.016,3476.0,3475.5,3.164939]
[1735140148036,0.016,3476.0,3475.5,0.287729]
[1735140148258,0.016,3476.0,3474.9,5.87771]
[1735140148401,0.04947073,3476.0,3474.9,5.87771]
[1735140148598,0.04947073,3476.0,3474.7,0.46258302]
[1735140148804,2.89292,3476.0,3475.0,2.87768]
[1735140149322,0.03347073,3476.4,3474.7,0.46258302]
[1735140149526,2.87645,3476.5,3475.4,2.87735]
[1735140149727,0.03347073,3476.4,3474.8,1.07233954]
[1735140150024,2.91006073,3476.4,3475.2,2.87751]
[1735140150605,2.87682,3476.1,3475.0,2.87767]
[1735140150806,2.91038073,3476.0,3474.8,3.40012954]
[1735140151305,2.91038073,3476.0,3474.8,0.52233954]
[1735140151500,2.91038073,3476.0,3474.9,2.87774]
[1735140152131,0.8061,3475.9,3474.9,2.87774]
[1735140152303,0.03347073,3475.8,3474.9,2.87774]
[1735140152503,0.8061,3475.7,3474.9,2.87774]
[1735140153147,0.8061,3475.7,3474.9,3.64361626]
[1735140153314,0.8061,3475.7,3475.0,2.87768]
[1735140153529,0.8061,3475.7,3475.2,2.87747]
[1735140153743,0.8061,3475.7,3475.3,2.87736]
[1735140154475,0.8061,3475.7,3474.5,1.35903213]
[1735140154608,0.8061,3475.5,3474.5,2.8781]
[1735140154807,0.8061,3475.3,3474.5,2.8781]
[1735140155659,0.03347073,3475.2,3474.1,3.19186043]
[1735140155872,0.8061,3475.1,3474.1,3.19186043]
[1735140156071,0.8061,3475.1,3474.2,1.19788021]
[1735140156365,0.83957073,3475.1,3474.2,1.87495915]
[1735140156726,0.8061,3475.1,3474.3,2.87824]
[1735140157553,0.83957073,3475.1,3474.3,2.87824]
[1735140157868,0.8061,3475.1,3474.3,2.87824]
[1735140159230,0.8061,3475.1,3474.2,0.67707894]
[1735140159546,0.8061,3475.1,3474.3,0.20574074]
[1735140160015,0.85137073,3475.0,3474.3,2.87822]
[1735140160221,0.85137073,3475.0,3473.9,2.87859]
[1735140160222,0.8179,3474.8,3473.9,2.87859]
[1735140161972,0.8179,3474.8,3473.8,3.0]
[1735140162119,0.8179,3474.8,3473.7,0.7795]
[1735140162120,0.8179,3474.8,3474.0,2.87849]
[1735140163576,0.8179,3474.8,3474.3,2.8782]
[1735140163770,0.8179,3474.8,3474.4,2.87811]
[1735140165088,0.8179,3474.8,3474.3,2.87827]
[1735140165360,0.8179,3475.0,3474.7,2.87794]
[1735140166122,0.8179,3475.8,3474.8,2.87779]
[1735140166950,0.8179,3475.8,3474.9,2.87775]
[1735140167310,0.8179,3475.8,3475.0,2.87769]
[1735140168067,0.85137073,3475.8,3475.0,2.87769]
[1735140168650,0.8179,3475.8,3474.7,0.287794]
[1735140168839,0.85137073,3475.7,3474.8,0.3945264]
[1735140169044,0.8179,3475.6,3474.6,2.87796]
[1735140169244,0.85137073,3475.6,3474.6,2.87796]
[1735140169742,0.8179,3475.6,3474.6,2.87796]
[1735140170051,0.8179,3475.6,3474.8,0.7795]
[1735140170466,0.8179,3475.6,3474.8,2.87786]
[1735140170629,0.828,3475.4,3474.7,2.87791]
[1735140170829,0.828,3475.2,3474.3,4.66338734]
[1735140171038,2.74904448,3476.0,3474.3,4.66338734]
[1735140171039,0.828,3475.0,3474.3,4.66338734]
[1735140171637,0.828,3475.0,3474.3,3.46550713]
[1735140172154,0.828,3475.0,3474.2,2.87832]
[1735140172768,0.828,3475.0,3474.3,2.87827]
[1735140173075,0.828,3475.0,3474.2,0.56865044]
[1735140174643,0.828,3475.0,3474.3,2.87826]
[1735140175293,0.828,3475.0,3474.2,0.56865044]
[1735140175461,0.828,3475.0,3474.4,2.87818]
[1735140177791,0.828,3475.0,3474.4,3.22286304]
[1735140179244,0.828,3475.0,3474.4,0.34468304]
[1735140179443,0.828,3475.0,3474.2,3.44699044]
[1735140180090,0.828,3475.0,3474.2,0.56865044]
[1735140180242,0.828,3475.0,3474.3,2.87826]
[1735140181084,0.828,3475.0,3474.2,0.56865044]
[1735140181251,4.18574116,3475.6,3474.0,1.19788021]
[1735140181252,0.775,3474.5,3474.0,1.19788021]
[1735140181580,0.775,3474.3,3474.0,1.19788021]
[1735140181789,0.775,3474.3,3474.0,4.07640021]
[1735140182254,0.775,3474.3,3474.0,2.87852]
[1735140182985,0.775,3474.3,3473.7,1.19788021]
[1735140183491,0.775,3474.1,3473.7,1.19788021]
[1735140185210,0.775,3474.1,3473.3,0.58134036]
[1735140185409,0.80847073,3474.1,3473.3,0.58134036]
[1735140185712,0.775,3474.1,3473.4,2.87902]
[1735140186096,0.775,3474.1,3473.4,0.46582406]
[1735140186281,0.775,3474.1,3473.8,2.87868]
[1735140186682,0.775,3474.1,3473.3,0.58134036]
[1735140187011,0.775,3474.1,3473.2,0.8324]
[1735140187012,3.65345,3474.1,3472.9,7.86284021]
[1735140187215,0.7621,3474.0,3473.0,2.87933]
[1735140187419,0.03347073,3473.9,3473.0,2.87933]
[1735140187569,0.7621,3473.8,3472.9,1.19788021]
[1735140187772,0.7621,3473.8,3473.0,1.19788021]
[1735140188486,0.79557073,3473.8,3473.0,1.19788021]
[1735140189220,0.79557073,3473.8,3472.9,2.87942]
[1735140189794,0.79557073,3473.8,3473.0,0.57863055]
[1735140190331,0.7621,3473.6,3472.5,2.87976]
[1735140190625,0.79557073,3473.6,3472.5,3.94127547]
[1735140191114,0.79557073,3473.6,3472.4,0.00287]
[1735140191281,0.79557073,3473.6,3472.6,2.87964]
[1735140191682,0.7621,3473.2,3472.4,2.8827]
[1735140192117,0.03347073,3473.1,3472.4,2.8827]
[1735140192421,0.7621,3473.0,3472.4,0.00287]
[1735140192624,0.7621,3473.0,3472.5,0.57023563]
[1735140192808,0.7621,3473.0,3472.4,2.88271]
[1735140194593,0.7621,3473.0,3472.4,0.00287]
[1735140195301,0.7621,3473.0,3472.5,2.87976]
[1735140196700,0.7621,3473.0,3472.4,0.00287]
[1735140197214,0.7621,3472.8,3472.4,0.00287]
[1735140198311,0.7621,3472.8,3472.4,2.88271]
[1735140198828,0.7621,3472.8,3472.4,0.00287]
[1735140201225,2.87971,3472.6,3472.4,0.00287]
[1735140201431,0.79557073,3472.5,3472.4,0.00287]
[1735140202103,0.7621,3472.5,3472.4,0.00287]
[1735140204002,3.64186,3472.5,3472.4,0.00287]
[1735140204199,6.67533073,3472.5,3472.4,0.00287]
[1735140204536,6.64186,3472.5,3472.4,0.00287]
[1735140205505,7.19186,3472.5,3472.4,1e-05]
[1735140206201,7.22266705,3472.5,3472.4,1e-05]
[1735140206428,6.64186,3472.5,3472.4,1e-05]
[1735140207210,2.88059,3471.5,3471.4,0.1727675]
[1735140207423,0.7556,3471.5,3471.4,0.1727675]
[1735140208809,0.78907073,3471.5,3471.4,0.1727675]
[1735140209224,6.66966073,3471.5,3471.4,0.1727675]
[1735140209555,6.63619,3471.5,3471.4,0.1727675]
[1735140211024,0.7556,3471.5,3471.4,0.1727675]
[1735140216457,0.78907073,3471.5,3471.4,0.1727675]
[1735140216790,6.66966073,3471.5,3471.4,0.1727675]
[1735140217091,6.63619,3471.5,3471.4,0.1727675]
[1735140218901,3.7556,3471.5,3471.4,0.1727675]
[1735140219183,3.63619,3471.5,3471.4,0.1727675]
[1735140220785,0.7556,3471.5,3471.4,0.1727675]
[1735140221150,2.87995,3472.3,3471.4,0.1727675]
[1735140221347,2.8801,3472.1,3471.4,0.1727675]
[1735140221585,0.8101,3471.9,3471.4,0.1727675]
[1735140221786,0.03347073,3471.8,3471.4,0.1727675]
[1735140222216,3.6904,3471.9,3471.4,0.1727675]
[1735140222426,0.03347073,3471.8,3471.4,0.1727675]
[1735140222780,3.6904,3471.9,3471.4,0.1727675]
[1735140223419,0.8101,3471.9,3471.4,0.1727675]
[1735140224316,3.0,3472.3,3471.5,3.67559]
[1735140224481,0.8101,3472.4,3471.6,3.26527575]
[1735140224677,0.8101,3472.4,3471.7,2.8804]
[1735140225850,0.8101,3472.4,3471.6,0.38483575]
[1735140226116,0.8101,3472.4,3471.4,0.1727675]
[1735140226497,0.8101,3472.4,3471.4,3.0534175]
[1735140226684,6.68997,3472.4,3471.4,0.1727675]
[1735140226886,3.69012,3472.2,3471.4,0.1727675]
[1735140227097,3.03347073,3472.1,3471.4,0.1727675]
[1735140227682,0.03347073,3472.1,3471.4,0.1727675]
[1735140228210,0.8101,3472.2,3471.4,0.1727675]
[1735140228780,0.03347073,3472.1,3471.4,0.1727675]
[1735140229377,0.8101,3472.2,3471.4,0.1727675]
[1735140229653,0.8101,3472.2,3471.5,0.795]
[1735140230151,0.8101,3472.2,3471.4,0.1727675]
[1735140230152,0.03347073,3472.1,3471.4,0.1727675]
[1735140230917,0.8101,3472.0,3471.4,0.1727675]
[1735140231449,3.69036,3472.0,3471.4,0.1727675]
[1735140231853,0.8101,3472.0,3471.4,0.1727675]
[1735140236487,0.8101,3472.0,3471.5,0.825]
[1735140237046,0.0504,3472.3,3472.1,2.88008]
[1735140237246,0.0504,3472.3,3472.2,2.88001]
[1735140237473,0.0504,3472.3,3472.2,3.70501]
[1735140240062,0.0504,3472.3,3472.2,2.88001]
[1735140240691,0.0504,3472.3,3472.2,4.20491]
[1735140240938,0.0504,3472.3,3472.2,4.64120421]
[1735140241053,0.0504,3472.3,3471.8,2.88027]
[1735140241246,0.0504,3472.3,3471.8,3.65517]
[1735140241520,0.0504,3472.3,3471.6,2.88049]
[1735140241689,0.7519,3472.2,3471.4,5.02620771]
[1735140241872,0.03347073,3472.1,3471.6,1.19788021]
[1735140242690,2.88018,3472.0,3471.6,1.19788021]
[1735140242894,3.63192,3472.2,3471.6,1.19788021]
[1735140243199,3.63192,3472.2,3471.4,0.1727675]
[1735140243640,0.7519,3472.2,3471.4,0.1727675]
[1735140243801,0.7519,3472.2,3471.4,3.0533675]
[1735140244193,0.7519,3472.2,3471.5,2.88059]
[1735140244631,0.7519,3472.2,3471.4,0.1727675]
[1735140244845,0.03347073,3472.1,3471.4,0.1727675]
[1735140245177,0.7519,3472.2,3471.4,3.0534275]
[1735140245706,0.78537073,3472.2,3471.4,3.0534275]
[1735140246322,2.88028,3471.9,3471.4,0.1727675]
[1735140246520,2.88019,3472.0,3471.4,0.1727675]
[1735140246824,0.7519,3471.8,3471.4,0.1727675]
[1735140247219,3.63226,3471.8,3471.4,0.1727675]
[1735140247424,0.03347073,3471.7,3471.4,0.1727675]
[1735140247675,0.7519,3471.6,3471.4,0.1727675]
[1735140247850,0.03347073,3471.5,3471.4,0.1727675]
[1735140249030,0.7519,3471.6,3471.4,0.1727675]
[1735140253562,3.0,3472.0,3471.4,0.1727675]
[1735140253759,1.93764116,3472.2,3471.5,2.88057]
[1735140254063,1.23614116,3472.3,3471.6,1.08023375]
[1735140254234,1.23614116,3472.3,3471.6,0.7749]
[1735140254431,1.23614116,3472.3,3472.2,0.7749]
[1735140255445,0.0504,3472.3,3472.2,0.7749]
[1735140255615,0.0504,3472.3,3472.0,0.7749]
[1735140255825,0.0504,3472.3,3471.8,0.7749]
[1735140257864,0.0504,3472.3,3471.8,1.140432]
[1735140258530,0.0504,3472.3,3472.0,2.88015]
[1735140258718,0.0504,3472.3,3471.8,1.140432]
[1735140259069,0.0504,3472.3,3472.2,4.20491]
[1735140259262,1.18574116,3473.3,3473.2,2.87918]
[1735140259857,1.18574116,3473.3,3473.1,0.7749]
[1735140260461,0.03347073,3473.7,3472.8,0.7957]
[1735140260783,2.87877,3473.8,3472.6,2.87968]
[1735140261075,2.91224073,3473.8,3472.6,2.87968]
[1735140261481,0.03347073,3473.7,3472.5,0.7957]
[1735140262550,0.03347073,3473.7,3472.3,2.87988]
[1735140262551,0.8176,3473.6,3472.3,2.87988]
[1735140262761,2.87911,3473.3,3472.3,2.87988]
[1735140262971,0.03347073,3473.2,3472.3,2.87988]
[1735140263280,0.03347073,3473.2,3472.2,0.7957]
[1735140263564,0.8176,3473.6,3472.2,4.61815245]
[1735140263868,2.87894,3473.5,3472.3,2.8799]
[1735140264263,0.8176,3473.6,3472.9,0.7979]
[1735140264467,0.03347073,3473.5,3472.9,0.7979]
[1735140264763,3.8133,3473.3,3472.0,2.8801]
[1735140264971,2.91270073,3473.2,3472.0,3.55935765]
[1735140265269,2.91270073,3473.2,3472.0,1.87713786]
[1735140265462,2.87923,3473.2,3472.1,2.88006]
[1735140265674,0.03347073,3473.1,3472.1,2.88006]
[1735140265988,2.87923,3473.2,3472.1,3.65180502]
[1735140266871,0.03347073,3473.1,3472.1,3.65180502]
[1735140267479,0.03347073,3473.1,3472.1,0.77174502]
[1735140267639,2.91274073,3473.1,3471.9,0.7979]
[1735140267974,2.91274073,3473.1,3471.9,3.67812]
[1735140268278,2.91274073,3473.1,3472.0,2.88017]
[1735140268467,2.87927,3473.1,3472.0,2.88017]
[1735140269379,2.91274073,3473.1,3472.0,2.88017]
[1735140269578,2.91274073,3473.1,3472.0,3.2845302]
[1735140270110,0.8133,3473.0,3471.6,3.67839]
[1735140270237,0.8133,3472.8,3471.6,0.7979]
[1735140270579,0.8133,3472.8,3471.4,0.1727675]
[1735140270580,2.87993,3472.3,3471.4,0.1727675]
[1735140272237,0.8133,3472.5,3471.5,2.88059]
[1735140272360,0.8133,3472.5,3471.6,2.88051]
[1735140272569,0.03347073,3472.4,3471.6,0.30532775]
[1735140272764,0.03347073,3472.4,3471.4,3.0534475]
[1735140273266,2.91335073,3472.4,3471.4,0.1727675]
[1735140273462,2.88005,3472.2,3471.4,0.1727675]
[1735140273698,0.8133,3472.1,3471.4,0.1727675]
[1735140273899,0.84677073,3472.1,3471.4,0.1727675]
[1735140274066,0.8133,3472.1,3471.4,0.1727675]
[1735140274817,3.69341,3472.1,3471.4,0.1727675]
[1735140276994,2.91367073,3472.0,3471.4,0.1727675]
[1735140277813,0.763,3471.9,3471.4,0.1727675]
[1735140278601,2.88046,3471.7,3471.4,0.1727675]
[1735140279177,2.88059,3471.5,3471.4,0.1727675]
[1735140279594,3.64359,3471.5,3471.4,0.1727675]
[1735140280462,7.22706073,3471.5,3471.4,7.5e-06]
[1735140280799,7.75626002,3471.5,3471.4,7.5e-06]
[1735140282095,8.94200118,3471.5,3471.4,7.5e-06]
[1735140282288,8.39200118,3471.5,3471.4,7.5e-06]
[1735140282471,8.94200118,3471.5,3471.4,7.5e-06]
[1735140283418,7.75626002,3471.5,3471.4,7.5e-06]
[1735140285373,7.20626002,3471.5,3471.4,7.5e-06]
[1735140286574,7.75626002,3471.5,3471.4,7.5e-06]
[1735140288433,7.20626002,3471.5,3471.4,7.5e-06]
[1735140289404,4.20626002,3471.5,3471.4,7.5e-06]
[1735140289614,4.23973075,3471.5,3471.4,7.5e-06]
[1735140289771,4.20626002,3471.5,3471.4,7.5e-06]
[1735140290578,7.23973075,3471.5,3471.4,7.5e-06]
[1735140290786,7.20626002,3471.5,3471.4,7.5e-06]
[1735140291638,6.44326002,3471.5,3471.4,7.5e-06]
[1735140291917,5.88059,3471.5,3471.4,7.5e-06]
[1735140294654,7.25199,3471.5,3471.4,7.5e-06]
[1735140294794,10.28599,3471.5,3471.4,7.5e-06]
[1735140294999,7.25199,3471.5,3471.4,7.5e-06]
[1735140295830,7.82438318,3471.5,3471.4,7.5e-06]
[1735140296197,8.1826622,3471.5,3471.4,7.5e-06]
[1735140296722,8.96999295,3470.9,3470.0,0.8211]
[1735140296920,6.70215,3471.4,3469.7,0.8211]
[1735140296921,2.88177,3470.1,3469.7,0.8211]
[1735140297499,2.88161,3470.3,3469.7,0.8211]
[1735140297944,3.0,3470.5,3469.7,0.8211]
[1735140298103,0.8214,3470.8,3469.7,0.8211]
[1735140298104,3.8214,3470.8,3469.7,0.8211]
[1735140298453,2.88134,3470.6,3469.7,0.8211]
[1735140298739,2.88166,3470.3,3469.7,0.8211]
[1735140300145,3.0,3470.5,3469.7,0.8211]
[1735140300446,3.0,3471.3,3469.7,0.8211]
[1735140300648,0.8214,3471.4,3469.4,2.77786273]
[1735140300649,3.0,3470.9,3469.9,0.8211]
[1735140300855,0.03347073,3470.9,3470.0,0.37031]
[1735140301141,3.0,3470.4,3469.9,0.8211]
[1735140301434,3.0,3470.2,3469.9,0.8211]
[1735140301597,5.88171,3470.2,3469.9,0.8211]
[1735140301996,2.88157,3470.4,3469.9,0.8211]
[1735140302231,3.0,3470.5,3469.9,0.8211]
[1735140302798,3.0,3470.5,3469.1,0.8211]
[1735140302799,3.0,3469.8,3469.1,0.8211]
[1735140303035,5.88201,3469.8,3469.1,0.8211]
[1735140303409,0.03347073,3469.7,3469.1,0.8211]
[1735140304236,0.03347073,3469.9,3469.1,0.8211]
[1735140304398,5.88201,3469.8,3469.1,0.8211]
[1735140304605,3.0,3469.6,3469.1,0.8211]
[1735140305228,3.03347073,3469.5,3469.1,0.8211]
[1735140305437,3.0,3469.5,3469.1,0.8211]
[1735140305840,2.8818,3470.1,3469.1,0.8211]
[1735140305841,3.0,3470.0,3469.1,0.8211]
[1735140306142,3.0,3469.7,3469.1,0.8211]
[1735140306320,3.0,3469.4,3469.1,0.8211]
[1735140306846,5.88237,3469.4,3469.1,0.8211]
[1735140307616,3.0,3469.5,3469.1,0.8211]
[1735140308047,3.0,3469.9,3469.1,0.8211]
[1735140308229,3.0,3469.9,3467.9,0.1727675]
[1735140308230,0.7957,3469.5,3468.2,0.78212581]
[1735140308406,3.0,3469.3,3468.2,0.7533]
[1735140309522,2.88243,3469.3,3468.2,0.7533]
[1735140309731,3.03347073,3469.2,3468.2,0.7533]
[1735140309945,0.03347073,3469.2,3468.2,0.7533]
[1735140310147,3.0,3468.9,3468.2,0.7533]
[1735140310651,3.0,3468.6,3468.2,0.7533]
[1735140310847,3.0,3469.1,3468.2,0.7533]
[1735140311635,3.03347073,3469.1,3468.2,0.7533]
[1735140312044,2.88223,3469.6,3468.2,0.7533]
[1735140312045,3.0,3469.5,3468.2,0.7533]
[1735140312395,5.63090448,3470.0,3468.2,0.7533]
[1735140312597,5.63090448,3470.0,3468.3,0.7533]
[1735140312757,5.63090448,3470.0,3468.5,0.7533]
[1735140313484,0.03347073,3469.9,3468.5,0.7533]
[1735140313802,3.0,3469.7,3468.5,0.7533]
[1735140313961,3.0,3469.9,3468.5,0.7533]
[1735140314362,2.88169,3470.2,3468.7,0.7533]
[1735140314616,3.0,3470.1,3468.7,0.7533]
[1735140315102,2.74904448,3470.4,3468.7,0.7533]
[1735140315604,2.8816,3470.3,3468.7,0.7533]
[1735140315969,2.91507073,3470.3,3468.7,0.7533]
[1735140316205,2.8816,3470.3,3468.7,0.7533]
[1735140316513,3.0,3470.2,3468.9,0.7533]
[1735140316879,3.0,3470.3,3468.9,0.7533]
[1735140317517,3.03347073,3470.3,3468.9,0.7533]
[1735140317873,3.0,3470.1,3468.9,0.7533]
[1735140318665,3.03347073,3470.1,3468.9,0.7533]
[1735140318893,3.0,3470.1,3468.9,0.7533]
[1735140319500,0.55,3470.2,3468.9,0.7533]
[1735140319917,3.0,3470.3,3469.1,0.7533]
[1735140320115,3.0,3470.3,3469.2,0.02881894]
[1735140320431,3.0,3470.3,3469.3,0.7533]
[1735140324219,1.73274421,3470.7,3469.5,0.8247]
[1735140324220,1.153931,3470.7,3469.5,0.8247]
[1735140324366,0.55,3470.7,3469.5,0.8247]
[1735140325003,2.74904448,3470.4,3469.5,0.8247]
[1735140325515,3.0,3470.3,3469.5,0.8247]
[1735140326812,3.0,3470.7,3469.5,0.8247]
[1735140327005,3.0,3470.7,3469.5,0.85351263]
[1735140327984,3.0,3470.7,3469.5,0.8247]
[1735140328652,0.55,3470.6,3469.5,1.05483929]
[1735140328919,0.55,3470.6,3469.6,0.8247]
[1735140329825,1.153737,3471.0,3469.6,0.8247]
[1735140329987,0.55,3471.1,3469.6,0.85351528]
[1735140330187,0.55,3471.1,3469.6,0.8247]
[1735140330491,0.55,3471.1,3469.7,0.8247]
[1735140331318,3.58347073,3471.1,3469.7,0.8247]
[1735140331616,3.55,3471.1,3469.7,0.8247]
[1735140331922,3.58347073,3471.1,3469.7,0.8247]
[1735140332219,0.55,3470.9,3469.7,0.8247]
[1735140332398,0.55,3470.9,3469.8,0.8247]
[1735140332727,0.04515563,3470.8,3469.8,0.8247]
[1735140337244,0.55,3470.7,3469.8,0.8247]
[1735140337612,0.55,3470.5,3469.8,0.8247]
[1735140337928,3.43136,3470.6,3469.8,0.8247]
[1735140338229,0.59512555,3470.4,3469.8,0.8247]
[1735140338387,0.55,3470.4,3469.8,0.8247]
[1735140338593,0.55,3470.2,3469.8,0.8247]
[1735140338796,0.55,3470.2,3469.5,0.8032]
[1735140339130,0.55,3469.8,3469.5,0.8032]
[1735140339531,0.55,3469.6,3469.5,0.8032]
[1735140340092,0.59459616,3469.6,3469.5,0.8032]
[1735140345702,0.04459616,3469.6,3469.5,0.8032]
[1735140346001,3.0,3470.3,3469.5,0.8032]
[1735140346415,0.04417493,3470.2,3469.5,0.8032]
[1735140347458,0.55,3469.9,3469.5,0.8032]
[1735140347668,3.55,3469.9,3469.5,0.8032]
[1735140347870,0.55,3469.7,3469.5,0.8032]
[1735140348220,0.55,3469.8,3469.5,0.8032]
[1735140348552,0.55,3469.6,3469.5,0.8032]
[1735140348912,0.55,3469.8,3469.5,0.8032]
[1735140349117,6.29904448,3469.6,3468.8,0.7762]
[1735140349369,0.55,3469.4,3468.8,1.15329005]
[1735140349729,0.55,3469.5,3468.8,0.7762]
[1735140349931,0.55,3469.2,3468.8,0.7762]
[1735140350148,0.55,3469.5,3468.8,0.7762]
[1735140350346,0.55,3469.0,3468.8,0.7762]
[1735140350838,0.04440965,3468.9,3468.8,0.7762]
[1735140352134,3.0,3469.5,3468.8,0.7762]
[1735140352436,0.04418699,3468.9,3468.8,0.7762]
[1735140352945,3.0,3469.5,3468.8,0.7762]
[1735140353150,0.04390365,3468.9,3468.8,0.7762]
[1735140353355,3.0,3469.5,3468.8,0.7762]
[1735140353554,0.04390365,3468.9,3468.8,0.7762]
[1735140353813,3.0,3469.5,3468.8,0.7762]
[1735140353929,0.04390365,3468.9,3468.8,0.7762]
[1735140354130,0.55,3469.4,3468.8,0.7762]
[1735140354333,0.04363032,3468.9,3468.4,0.02882247]
[1735140354536,0.04363032,3468.9,3468.3,1.19788021]
[1735140354537,3.55,3469.9,3468.5,0.14767027]
[1735140354897,3.55,3469.9,3468.6,0.8159]
[1735140355056,2.74904448,3469.6,3468.6,0.8159]
[1735140355395,3.55,3469.5,3468.6,0.8159]
[1735140355593,3.59363032,3469.5,3468.6,0.8159]
[1735140357375,0.59363032,3469.5,3468.6,0.8159]
[1735140358139,0.04363032,3469.5,3468.7,0.02882177]
[1735140358383,2.74904448,3470.0,3468.7,0.84472177]
[1735140358700,0.04349189,3469.4,3468.7,2.52476625]
[1735140358861,2.74904448,3470.0,3468.8,1.18816465]
[1735140359194,3.04317882,3469.9,3468.9,0.8159]
[1735140359495,0.55,3469.8,3468.9,0.8159]
[1735140360196,0.04317882,3469.7,3469.0,0.8159]
[1735140360399,0.04317882,3469.7,3469.1,0.36841091]
[1735140362641,0.04317882,3469.7,3469.2,0.8053]
[1735140363153,0.55,3470.3,3469.2,0.8053]
[1735140363587,0.55,3470.1,3469.4,0.8053]
[1735140364030,3.55,3470.3,3469.4,0.8053]
[1735140364240,0.04267605,3470.0,3469.4,0.8053]